bitfinex-derivatives/quotes_ETHF0:USTF0_20250624
["timestamp","ask_amount","ask_price","bid_price","bid_amount"]
[1750760097818,4.5398,2416.9,2416.4,2.0549]
[1750760100221,0.6877,2417.0,2416.8,3.2078]
[1750760100423,2.79464214,2417.5,2416.8,3.2078]
[1750760100424,3.2078,2417.5,2416.8,3.2078]
[1750760100626,0.6929,2417.7,2417.2,3.2078]
[1750760100922,0.6929,2417.7,2416.9,5.9967]
[1750760101122,1.4209,2417.6,2417.0,1.3835]
[1750760101619,0.6929,2417.7,2417.2,3.2078]
[1750760101923,0.6929,2417.7,2417.3,1.3835]
[1750760102314,0.6929,2417.7,2417.4,0.7074]
[1750760102916,2.1138,2417.7,2417.4,0.7074]
[1750760106720,0.6929,2417.7,2417.0,2.1234]
[1750760107026,3.2078,2417.8,2417.2,3.2078]
[1750760107417,3.2078,2417.8,2417.3,1.3516]
[1750760107625,3.2078,2417.8,2417.4,0.6747]
[1750760107924,3.2078,2417.8,2417.5,1.3516]
[1750760108617,3.8914,2418.1,2417.5,1.3516]
[1750760108824,3.8914,2418.1,2417.6,3.2078]
[1750760109324,1.4291,2418.0,2417.4,1.3545]
[1750760113726,1.4291,2418.0,2417.4,0.6798]
[1750760113927,3.2078,2417.8,2417.2,3.2078]
[1750760114122,2.0106,2417.7,2417.2,3.2078]
[1750760114322,3.2078,2417.5,2416.8,3.2078]
[1750760114522,1.3225,2417.4,2416.8,3.2078]
[1750760114923,0.7113,2417.3,2416.8,3.2078]
[1750760115226,1.3225,2417.2,2416.8,3.2078]
[1750760115427,0.7241,2417.1,2416.8,3.2078]
[1750760117332,0.7113,2417.3,2416.8,3.2078]
[1750760117534,0.7113,2417.3,2416.9,0.6951]
[1750760118022,2.1602,2417.3,2416.9,0.6951]
[1750760118722,1.4255,2417.2,2416.9,0.6951]
[1750760121232,1.4255,2417.2,2416.7,0.7128]
[1750760122027,4.6333,2417.2,2416.5,3.2078]
[1750760122430,1.3647,2417.1,2416.5,3.2078]
[1750760122934,1.3647,2417.1,2416.4,4.5852]
[1750760123930,3.2078,2416.9,2416.1,3.2078]
[1750760124130,1.3647,2417.1,2416.0,1.4137515]
[1750760124131,3.2078,2416.6,2416.0,0.7301515]
[1750760124337,2.0884,2416.5,2416.0,0.7301515]
[1750760124840,1.3137,2416.4,2416.0,0.6664]
[1750760125836,0.6821,2416.3,2416.0,0.6664]
[1750760126633,1.3137,2416.2,2415.8,3.2078]
[1750760126938,1.3137,2416.2,2415.5,3.915]
[1750760127137,3.2078,2416.0,2415.5,3.2078]
[1750760127339,1.3137,2415.9,2415.2,3.2078]
[1750760129438,3.2078,2415.7,2415.2,3.2078]
[1750760129641,2.1137,2415.6,2415.2,3.2078]
[1750760129831,2.8218,2415.6,2415.2,3.2078]
[1750760130232,2.8218,2415.6,2414.9,3.2078]
[1750760130727,2.8218,2415.6,2414.9,4.5458]
[1750760131336,3.2078,2416.0,2415.2,3.2078]
[1750760131543,3.2078,2416.0,2415.5,3.2078]
[1750760132140,3.2078,2416.0,2415.6,1.338]
[1750760133947,3.2078,2416.0,2415.5,3.2078]
[1750760134746,3.2078,2416.0,2415.5,4.6199]
[1750760135047,3.2078,2416.0,2415.5,4.6836515]
[1750760135638,3.2078,2416.0,2415.5,3.2715515]
[1750760135838,2.0924,2415.9,2415.5,3.2715515]
[1750760136040,2.0924,2415.9,2415.5,0.0637515]
[1750760137050,2.8114,2415.9,2415.5,0.0637515]
[1750760138849,3.2078,2416.0,2415.5,3.2715515]
[1750760139148,3.2078,2416.0,2415.5,4.6268515]
[1750760140050,2.0387,2415.9,2415.5,3.2715515]
[1750760140254,2.0387,2415.9,2415.5,0.0637515]
[1750760144141,0.6596,2415.9,2415.5,0.0637515]
[1750760144342,0.6596,2415.9,2415.5,1.4891515]
[1750760146452,3.2078,2416.0,2415.5,1.4891515]
[1750760146652,0.6794,2416.2,2415.8,3.2078]
[1750760146863,0.6794,2416.2,2415.9,2.0317]
[1750760147150,0.6794,2416.2,2415.9,0.7001]
[1750760147355,3.2078,2416.0,2415.5,0.0637515]
[1750760147757,1.4186,2415.9,2415.5,0.0637515]
[1750760148254,1.4186,2415.9,2415.6,0.7001]
[1750760148861,3.2078,2416.0,2415.6,0.7001]
[1750760149356,1.9849,2416.2,2415.6,3.9079]
[1750760149659,1.9849,2416.2,2415.6,5.3114]
[1750760150354,0.6794,2416.2,2415.6,5.3114]
[1750760150559,0.6794,2416.2,2415.7,0.6809]
[1750760151152,0.6794,2416.2,2415.9,0.0637515]
[1750760151553,0.6794,2416.2,2416.0,0.6677]
[1750760154865,3.2078,2416.3,2416.0,0.6677]
[1750760155070,3.2078,2416.3,2416.1,1.3123]
[1750760156162,3.2078,2416.3,2416.2,0.6951]
[1750760161765,3.2078,2416.3,2416.0,0.6677]
[1750760162467,0.7219,2416.2,2416.0,0.6677]
[1750760163869,1.4454,2416.5,2416.0,0.6677]
[1750760164169,2.1148,2416.5,2416.0,2.0505]
[1750760165071,0.6694,2416.5,2416.0,2.0505]
[1750760165470,0.6694,2416.5,2416.1,1.3051]
[1750760165768,0.6694,2416.5,2416.2,0.6787]
[1750760168472,0.6694,2416.5,2416.2,3.8865]
[1750760171577,0.6694,2416.5,2416.2,0.6787]
[1750760171770,0.6694,2416.5,2416.2,3.8865]
[1750760171967,0.6694,2416.5,2416.2,3.2078]
[1750760172168,1.3284,2416.4,2416.0,0.0637515]
[1750760176876,4.28660895,2416.3,2416.0,0.0637515]
[1750760177074,3.14060895,2416.2,2416.0,0.0637515]
[1750760177379,2.44340895,2416.1,2416.0,0.0637515]
[1750760177577,3.15530895,2416.1,2415.2,3.2078]
[1750760177778,3.2078,2415.8,2415.2,3.2078]
[1750760178078,2.7737,2415.7,2415.2,3.2078]
[1750760178277,1.3646,2415.6,2415.2,3.2078]
[1750760178774,3.2078,2415.5,2414.9,3.2078]
[1750760178973,3.2078,2415.1,2414.5,3.2078]
[1750760179280,1.4091,2415.7,2413.7,3.2078]
[1750760179281,3.2078,2414.8,2413.7,3.2078]
[1750760179480,3.2078,2414.4,2413.7,3.2078]
[1750760179779,2.0862,2414.3,2413.7,3.2078]
[1750760180176,0.6982,2414.2,2413.6,0.6656]
[1750760180481,3.2078,2414.0,2413.4,3.2078]
[1750760180682,1.389,2413.9,2413.4,3.2078]
[1750760181373,0.6982,2414.2,2413.7,3.2078]
[1750760181684,2.0872,2414.2,2413.4,3.2078]
[1750760181872,2.0872,2414.2,2413.8,3.2078]
[1750760182972,2.0872,2414.2,2413.3,4.6287]
[1750760183176,2.0872,2414.2,2413.7,3.2078]
[1750760184177,1.3661,2414.7,2414.1,3.2078]
[1750760184369,0.6618,2415.2,2414.3,3.2078]
[1750760184576,0.6618,2415.2,2414.6,3.2078]
[1750760184972,1.3661,2415.1,2414.6,3.2078]
[1750760185172,0.6618,2415.2,2414.6,3.2078]
[1750760185368,0.6618,2415.2,2414.7,1.3407]
[1750760189079,3.2078,2415.4,2414.9,3.2078]
[1750760189483,3.2078,2415.4,2415.0,1.448]
[1750760189877,8.2078,2415.4,2414.1,3.2078]
[1750760190077,3.2078,2414.8,2414.0,3.2078]
[1750760190283,3.2078,2414.5,2413.9,3.2078]
[1750760190483,2.0601,2414.4,2413.9,3.2078]
[1750760190786,0.7007,2414.4,2413.9,3.2078]
[1750760190985,3.2078,2414.5,2414.2,3.2078]
[1750760191582,0.6882,2414.7,2414.2,3.2078]
[1750760191792,0.6882,2414.7,2414.5,3.2078]
[1750760194289,0.6882,2414.7,2414.4,3.2078]
[1750760194483,0.6882,2414.7,2414.1,3.2078]
[1750760194785,1.3442,2414.6,2414.5,0.0637515]
[1750760196383,4.552,2414.6,2414.5,0.0637515]
[1750760198888,3.2078,2414.6,2414.5,0.0637515]
[1750760202383,0.6882,2414.7,2414.5,0.0637515]
[1750760205494,2.1272,2414.7,2414.5,0.0637515]
[1750760206295,3.2078,2414.6,2414.5,0.0637515]
[1750760206491,5.7212535,2414.6,2414.5,0.0637515]
[1750760206689,13.5882535,2414.6,2413.6,4.6421]
[1750760206884,3.2078,2414.2,2413.6,4.6421]
[1750760207089,3.2078,2414.2,2413.7,1.3816]
[1750760208293,3.2078,2414.2,2413.6,1.4343]
[1750760208488,2.7514,2414.1,2413.6,1.4343]
[1750760209896,3.2078,2414.2,2413.6,4.7058515]
[1750760210098,2.867,2414.5,2413.7,1.3999]
[1750760210290,1.07385215,2414.4,2413.7,1.3999]
[1750760210491,3.2078,2414.3,2413.7,1.3999]
[1750760210792,1.3064,2414.5,2413.7,1.3999]
[1750760210999,1.07396367,2414.4,2413.7,1.3999]
[1750760211295,4.5958,2414.6,2413.7,4.6077]
[1750760211601,4.5958,2414.6,2414.0,3.2078]
[1750760211792,4.5958,2414.6,2414.1,1.3999]
[1750760212400,1.3064,2415.0,2414.3,3.2078]
[1750760212704,1.07470811,2414.9,2414.4,1.3999]
[1750760212893,1.07470811,2414.8,2414.4,1.3999]
[1750760213090,1.07470811,2414.7,2414.4,1.3999]
[1750760213291,2.6944,2415.0,2414.4,1.3999]
[1750760213496,1.07601081,2414.9,2414.4,1.3999]
[1750760213703,1.07614402,2414.8,2414.4,1.3999]
[1750760213902,1.07614402,2414.7,2414.4,1.3999]
[1750760214201,2.6944,2415.0,2414.4,1.3999]
[1750760214399,1.07611346,2414.9,2414.4,1.3999]
[1750760214593,1.07611346,2414.9,2414.3,3.2078]
[1750760214594,1.07611346,2414.8,2414.3,3.2078]
[1750760214795,3.2078,2414.4,2413.6,0.0637515]
[1750760214996,3.2078,2413.9,2413.6,0.0637515]
[1750760215196,2.41131346,2413.8,2413.6,0.0637515]
[1750760215392,1.07611346,2413.7,2413.6,0.0637515]
[1750760216401,1.9998,2413.8,2413.6,0.0637515]
[1750760216600,1.07483945,2413.7,2413.6,0.0637515]
[1750760217501,1.9998,2413.8,2413.6,0.0637515]
[1750760218509,1.07464275,2413.7,2413.6,0.0637515]
[1750760219005,1.9998,2413.8,2413.6,0.0637515]
[1750760219307,1.07464976,2413.7,2413.6,0.0637515]
[1750760219604,1.07483221,2413.7,2413.6,0.0637515]
[1750760220405,2.44071803,2414.8,2413.6,5.0637515]
[1750760220599,2.7889,2415.2,2414.5,3.2078]
[1750760220796,1.07555204,2415.1,2414.5,3.2078]
[1750760221004,3.2078,2415.4,2414.9,3.2078]
[1750760221301,3.2078,2415.8,2415.0,1.3458]
[1750760221502,1.0758537,2415.7,2415.0,2.6864]
[1750760221690,3.2078,2415.4,2415.0,2.6864]
[1750760225202,3.2078,2415.4,2415.0,1.3406]
[1750760225403,3.2078,2415.4,2415.0,4.5484]
[1750760225601,3.2078,2415.4,2415.1,1.3245]
[1750760226695,3.2078,2415.4,2415.0,4.6121515]
[1750760226902,3.2078,2415.4,2415.0,3.9361515]
[1750760227200,3.2078,2415.4,2415.0,0.0637515]
[1750760227395,1.3847,2415.3,2415.0,0.0637515]
[1750760228403,1.3847,2415.3,2415.0,3.2715515]
[1750760228712,3.2078,2415.4,2415.0,0.0637515]
[1750760228900,3.2078,2415.4,2415.0,3.2715515]
[1750760229100,1.3166,2415.5,2415.0,3.2715515]
[1750760229302,3.2078,2415.4,2415.0,0.0637515]
[1750760229500,1.3166,2415.3,2415.0,0.0637515]
[1750760230002,3.2078,2415.1,2415.0,0.0637515]
[1750760230407,8.2078,2415.1,2415.0,0.0637515]
[1750760230708,9.5244,2415.1,2415.0,0.0637515]
[1750760231109,4.5244,2415.1,2415.0,0.0637515]
[1750760231310,3.2078,2415.1,2415.0,0.0637515]
[1750760231510,3.8983,2415.4,2415.0,0.0637515]
[1750760232506,1.3055,2415.3,2415.0,0.0637515]
[1750760234607,0.6905,2415.4,2415.0,0.0637515]
[1750760234808,3.2078,2415.7,2415.1,3.2078]
[1750760235009,3.2078,2415.7,2415.2,0.6607]
[1750760235204,3.2078,2415.7,2415.3,1.4441]
[1750760237716,5.966,2416.1,2415.3,1.4441]
[1750760240216,5.966,2416.1,2415.4,3.2078]
[1750760243409,5.966,2416.1,2415.7,3.2078]
[1750760243612,3.2078,2416.5,2415.7,3.2078]
[1750760243918,3.2078,2416.5,2415.8,2.7765]
[1750760244624,4.6435,2416.5,2415.8,2.7765]
[1750760246121,1.3982,2416.7,2415.8,2.7765]
[1750760246122,1.3982,2416.7,2416.3,3.2078]
[1750760246323,1.3982,2416.7,2416.0,3.2078]
[1750760246620,1.3323,2416.6,2416.0,3.2078]
[1750760250223,3.2078,2416.5,2416.0,3.2078]
[1750760250529,1.442,2416.4,2416.0,3.2078]
[1750760253633,3.2078,2416.5,2416.0,3.2078]
[1750760254132,3.2078,2416.5,2416.1,1.387]
[1750760261043,3.2078,2416.5,2416.0,3.2715515]
[1750760261346,3.2078,2416.2,2416.0,0.0637515]
[1750760261534,2.6662,2416.1,2416.0,0.0637515]
[1750760262846,3.74712719,2416.1,2416.0,0.0637515]
[1750760267544,2.6662,2416.1,2416.0,0.0637515]
[1750760267745,3.74916587,2416.1,2416.0,0.0637515]
[1750760268640,6.1898839,2416.1,2415.0,3.9115]
[1750760268847,3.2078,2415.8,2415.2,2.1005]
[1750760269042,1.08296587,2415.7,2415.2,2.1005]
[1750760270445,2.39556587,2415.7,2415.2,2.1005]
[1750760270643,1.3126,2415.7,2415.2,2.1005]
[1750760270845,1.3126,2415.7,2415.2,0.6663]
[1750760271045,0.6744,2415.6,2415.2,0.6663]
[1750760272148,0.6744,2415.6,2415.3,1.4019]
[1750760274646,3.2078,2415.8,2415.3,1.4019]
[1750760275244,4.6284,2415.8,2415.3,1.4019]
[1750760277849,4.6284,2415.8,2415.2,0.6663]
[1750760280950,3.2078,2415.8,2415.3,3.2078]
[1750760281144,3.2078,2415.8,2415.3,4.5599]
[1750760281654,3.2078,2416.2,2416.0,0.0637515]
[1750760282143,3.2078,2416.5,2416.0,0.0637515]
[1750760282348,1.08517535,2416.4,2416.0,0.0637515]
[1750760282544,1.3431,2416.4,2416.0,0.0637515]
[1750760282739,0.6774,2416.3,2416.0,0.0637515]
[1750760285653,3.915,2416.8,2416.0,0.0637515]
[1750760285955,0.715,2416.8,2416.5,3.2078]
[1750760286254,0.715,2416.8,2416.6,0.6937]
[1750760286952,0.715,2416.8,2416.2,3.2078]
[1750760287145,1.3125,2416.7,2416.2,3.9015]
[1750760287841,1.3125,2416.7,2416.2,3.2078]
[1750760288042,0.6938,2416.6,2416.0,0.0637515]
[1750760288250,1.3125,2416.5,2416.0,0.0637515]
[1750760288459,4.5203,2416.5,2416.0,0.0637515]
[1750760289755,1.0847152,2416.4,2416.0,0.0637515]
[1750760289955,2.1507,2416.3,2416.0,0.0637515]
[1750760292358,4.29195268,2416.2,2416.0,0.0637515]
[1750760292559,1.4184,2416.1,2416.0,0.0637515]
[1750760292749,2.5025656,2416.1,2416.0,0.0637515]
[1750760294263,3.2078,2416.2,2416.0,0.0637515]
[1750760295357,4.5233,2416.2,2416.0,0.0637515]
[1750760296554,1.3155,2416.2,2416.0,0.0637515]
[1750760297359,0.7093,2416.3,2416.0,0.0637515]
[1750760301161,0.7093,2416.3,2416.1,0.7247]
[1750760301354,3.2078,2416.5,2416.1,0.7247]
[1750760301556,3.2078,2416.5,2416.2,1.9811]
[1750760302060,3.2078,2416.5,2416.2,0.6751]
[1750760302260,1.08550165,2416.4,2416.0,0.0637515]
[1750760302459,3.2078,2416.2,2416.0,0.0637515]
[1750760302763,2.45275282,2416.1,2416.0,0.0637515]
[1750760303055,5.73834952,2416.1,2414.8,3.2078]
[1750760303264,3.2078,2415.3,2414.8,3.2078]
[1750760303565,3.2078,2415.6,2414.8,3.2078]
[1750760303758,1.08450151,2415.5,2414.8,3.2078]
[1750760303959,1.79390151,2415.4,2414.8,3.2078]
[1750760304260,0.7094,2415.4,2414.8,3.2078]
[1750760304559,0.7094,2415.4,2414.9,1.4179]
[1750760305067,0.7094,2415.4,2414.8,3.2078]
[1750760305255,1.4228,2415.3,2414.8,3.2078]
[1750760306068,1.4228,2415.3,2414.9,1.4179]
[1750760308369,1.4228,2415.3,2414.8,3.2078]
[1750760313168,4.6306,2415.3,2414.8,3.2078]
[1750760314074,4.6306,2415.3,2414.8,3.2715515]
[1750760315965,3.2078,2414.9,2413.8,3.29916229]
[1750760316274,3.2078,2414.1,2413.8,0.6922]
[1750760316775,3.2078,2414.1,2413.8,2.1043]
[1750760317271,1.3823,2414.6,2414.0,3.2078]
[1750760317468,1.3823,2414.6,2414.1,2.1304]
[1750760318177,3.2078,2414.7,2414.4,3.2078]
[1750760318876,3.2078,2414.7,2414.5,0.7191]
[1750760320277,0.6532,2414.8,2414.5,0.7191]
[1750760320579,3.2078,2415.0,2414.5,0.7191]
[1750760321176,2.1395,2414.9,2414.8,0.0637515]
[1750760322475,3.2078,2415.0,2414.8,0.0637515]
[1750760323676,0.669,2415.2,2414.8,0.0637515]
[1750760324079,3.2078,2415.3,2414.9,2.0806]
[1750760324281,3.2078,2415.3,2415.0,0.6721]
[1750760325572,0.6863,2415.5,2415.0,3.8799]
[1750760325774,0.6863,2415.5,2415.0,5.2895]
[1750760330277,0.6863,2415.5,2415.0,5.3532515]
[1750760333690,0.6863,2415.5,2415.0,3.9436515]
[1750760333888,1.3083,2415.4,2415.0,3.9436515]
[1750760337782,1.3083,2415.4,2415.0,5.3540515]
[1750760340881,0.6863,2415.5,2415.0,5.3540515]
[1750760343087,3.2078,2415.6,2415.0,5.3540515]
[1750760344591,0.7211,2415.8,2415.0,5.3540515]
[1750760344783,1.08880176,2415.7,2415.0,5.3540515]
[1750760344979,1.08880176,2415.6,2415.0,5.3540515]
[1750760345183,0.7211,2415.8,2415.3,3.2078]
[1750760345379,1.08833908,2415.7,2415.4,2.0052]
[1750760345578,0.7211,2415.8,2415.4,2.0052]
[1750760345878,1.08855531,2415.7,2415.4,0.6657]
[1750760346083,2.1327,2415.8,2415.4,0.6657]
[1750760346282,1.08864135,2415.7,2415.0,3.2715515]
[1750760346483,3.2078,2415.6,2415.0,3.9372515]
[1750760346684,3.2078,2415.6,2415.1,1.3395]
[1750760347083,0.7211,2415.8,2415.1,1.3395]
[1750760347292,1.08920739,2415.7,2415.3,3.2078]
[1750760347493,0.7211,2415.8,2415.4,1.4069]
[1750760347689,1.08921783,2415.7,2415.4,2.1123]
[1750760347998,0.7211,2415.8,2415.4,2.1123]
[1750760348195,1.09002742,2415.7,2415.4,2.1123]
[1750760348491,0.7211,2415.8,2415.4,2.1123]
[1750760348692,1.09007766,2415.7,2415.4,2.1123]
[1750760348891,0.7211,2415.8,2415.4,2.1123]
[1750760349088,1.09116717,2415.7,2415.4,2.1123]
[1750760349292,1.09116717,2415.6,2415.4,2.1123]
[1750760349495,2.1542,2415.8,2415.4,0.7054]
[1750760349695,1.09184711,2415.7,2415.4,0.7054]
[1750760349990,1.09184711,2415.6,2415.4,0.7054]
[1750760350192,2.1542,2415.8,2415.4,0.7054]
[1750760350396,1.09259139,2415.7,2415.4,0.7054]
[1750760350589,1.09259139,2415.6,2415.4,0.7054]
[1750760350891,2.1542,2415.8,2415.4,0.7054]
[1750760351093,1.09231726,2415.7,2415.4,0.7054]
[1750760351292,1.09231726,2415.6,2415.4,0.7054]
[1750760351492,2.1542,2415.8,2415.4,0.7054]
[1750760351692,1.09560468,2415.7,2415.4,0.7054]
[1750760351893,1.09560468,2415.6,2415.4,0.7054]
[1750760352094,1.09590571,2415.5,2415.4,0.7054]
[1750760355096,1.09590571,2415.5,2415.4,2.0752]
[1750760360807,1.09590571,2415.5,2415.4,2.1389515]
[1750760361007,2.45020468,2416.0,2415.4,7.1389515]
[1750760361202,0.6729,2416.2,2415.8,3.2078]
[1750760361399,0.6729,2416.2,2415.9,2.0917]
[1750760361709,0.7233,2416.4,2415.9,2.0917]
[1750760361903,0.7233,2416.4,2416.1,3.2078]
[1750760362602,3.2078,2416.5,2416.1,3.2078]
[1750760362807,3.2078,2416.5,2416.2,2.0458]
[1750760363211,3.2078,2416.5,2416.3,0.6987]
[1750760363512,2.031,2416.7,2416.3,0.6987]
[1750760364613,3.2078,2416.4,2415.8,3.2078]
[1750760364821,3.2078,2416.0,2415.6,0.6987]
[1750760365117,0.674,2415.9,2415.6,0.6987]
[1750760366014,0.7212,2416.2,2415.8,3.2078]
[1750760366220,0.6541,2416.5,2415.8,3.2078]
[1750760366420,0.6541,2416.5,2416.1,3.2078]
[1750760366720,0.6541,2416.5,2416.2,1.416]
[1750760367317,0.6541,2416.5,2416.2,0.7013]
[1750760369023,3.2078,2416.4,2415.9,3.8808]
[1750760369224,3.2078,2416.4,2415.9,5.1964]
[1750760370019,4.5681,2416.4,2415.9,5.1964]
[1750760371228,3.2078,2416.4,2415.9,5.1964]
[1750760372420,4.5485,2416.4,2415.9,5.1964]
[1750760372622,3.2078,2416.4,2415.9,5.1964]
[1750760373023,0.6541,2416.5,2415.9,5.1964]
[1750760375832,0.6541,2416.5,2415.9,5.2601515]
[1750760376634,0.6541,2416.5,2415.9,3.9445515]
[1750760376934,1.3684,2416.4,2415.9,3.9445515]
[1750760377633,4.5762,2416.4,2415.9,3.9445515]
[1750760379336,3.2078,2416.4,2415.9,3.9445515]
[1750760379534,3.2078,2416.4,2416.0,1.3135]
[1750760385741,0.6541,2416.5,2416.2,3.2078]
[1750760386128,0.6541,2416.5,2416.3,0.711]
[1750760386744,0.7212,2416.7,2416.3,0.711]
[1750760388142,1.08753309,2416.6,2416.3,0.711]
[1750760388441,0.7212,2416.7,2416.3,0.711]
[1750760388634,1.08761274,2416.6,2416.3,0.711]
[1750760388836,0.7212,2416.7,2416.3,0.711]
[1750760389141,1.08764043,2416.6,2416.3,0.711]
[1750760389337,0.7212,2416.7,2416.3,0.711]
[1750760389541,1.4428,2417.1,2416.5,3.2078]
[1750760389729,1.0883871,2417.0,2416.5,3.2078]
[1750760389936,0.6752,2417.1,2416.5,4.5424]
[1750760390133,1.08865167,2417.0,2416.5,4.5424]
[1750760390347,2.1037,2417.1,2416.5,4.5424]
[1750760390544,1.08919341,2417.0,2416.5,4.5424]
[1750760390744,2.1037,2417.1,2416.5,4.5424]
[1750760390941,1.08923493,2417.0,2416.5,4.5424]
[1750760391137,0.6752,2417.1,2416.8,3.2078]
[1750760391447,0.6576,2417.2,2416.9,0.656]
[1750760392045,0.6752,2417.4,2417.1,3.2078]
[1750760393444,0.6576,2417.7,2417.1,3.2078]
[1750760393639,1.0872194,2417.6,2417.1,4.6204]
[1750760393839,1.3461,2417.7,2417.1,4.6204]
[1750760394149,2.7213,2417.7,2417.1,4.6204]
[1750760397045,2.7213,2417.7,2417.1,3.2078]
[1750760397751,3.2078,2417.5,2416.9,0.656]
[1750760398055,1.3176,2417.4,2416.9,0.656]
[1750760398650,0.7195,2417.3,2416.9,0.656]
[1750760399949,0.7195,2417.3,2416.9,2.0385]
[1750760400542,0.6576,2417.7,2417.2,3.2078]
[1750760400748,0.7195,2417.6,2417.2,3.2078]
[1750760400955,0.7195,2417.6,2417.3,0.6535]
[1750760401454,0.7195,2417.6,2417.5,3.2078]
[1750760402058,1.34,2418.0,2417.5,3.2078]
[1750760402256,2.0517,2418.0,2417.5,3.2078]
[1750760403954,0.7117,2418.0,2417.5,4.6491]
[1750760404249,0.6677,2418.1,2417.9,3.2078]
[1750760404456,1.3799,2418.5,2417.9,3.2078]
[1750760404647,1.3799,2418.5,2418.0,1.3703]
[1750760405451,3.2078,2418.4,2418.0,0.6934]
[1750760405659,1.3668,2418.3,2417.9,3.2078]
[1750760406551,0.6959,2418.2,2417.9,3.2078]
[1750760408459,0.7024,2418.6,2417.9,3.2078]
[1750760408759,2.0624,2418.5,2418.0,1.3391]
[1750760409159,2.0624,2418.5,2418.1,0.662]
[1750760409855,2.0624,2418.5,2417.9,3.2078]
[1750760410855,3.2078,2418.4,2417.9,3.2078]
[1750760411258,0.6552,2418.5,2418.2,3.2078]
[1750760411454,0.7024,2418.6,2418.3,0.693]
[1750760411657,0.6591,2418.8,2418.3,0.693]
[1750760412260,1.4105,2418.7,2418.3,0.693]
[1750760412452,0.6936,2418.6,2418.3,0.693]
[1750760412651,0.6936,2418.6,2418.2,3.2078]
[1750760412855,0.6936,2418.6,2418.3,3.2078]
[1750760413255,0.6591,2418.8,2418.4,0.693]
[1750760413756,2.0696,2418.8,2418.4,0.693]
[1750760413954,2.0696,2418.8,2418.4,1.4034]
[1750760414149,3.9014,2419.2,2418.6,3.2078]
[1750760414356,4.6167,2419.2,2418.6,3.2078]
[1750760414557,1.3875,2419.1,2418.6,3.2078]
[1750760415459,1.4089,2419.2,2418.6,3.2078]
[1750760415653,1.4089,2419.2,2418.7,1.3194]
[1750760416559,1.4089,2419.2,2418.6,3.2078]
[1750760416760,1.3875,2419.1,2418.6,3.2078]
[1750760417157,4.6167,2419.2,2418.7,1.3076]
[1750760418353,0.7153,2419.2,2418.9,3.2078]
[1750760418661,3.2078,2419.5,2418.9,3.2078]
[1750760418870,3.2078,2419.5,2419.0,0.6612]
[1750760419058,3.2078,2419.5,2419.0,2.6415]
[1750760420459,3.2078,2419.5,2419.0,0.6612]
[1750760420663,1.4431,2419.4,2418.6,3.2078]
[1750760420854,1.4431,2419.4,2418.7,2.7933]
[1750760421466,3.2078,2419.5,2419.0,3.2078]
[1750760422150,3.2078,2419.5,2419.1,1.3994]
[1750760422552,3.2078,2419.5,2419.2,0.7109]
[1750760423760,1.3919,2419.7,2419.3,3.2078]
[1750760423963,2.45951437,2420.5,2419.6,3.2078]
[1750760424165,2.7954,2420.8,2420.4,3.2078]
[1750760424459,2.0903,2420.8,2420.4,3.2078]
[1750760424859,2.0903,2420.8,2420.1,3.2078]
[1750760425061,2.0903,2420.8,2420.2,2.7112]
[1750760425264,3.2078,2421.0,2420.4,3.2078]
[1750760425461,2.1342,2420.9,2420.4,3.2078]
[1750760425659,2.1342,2420.9,2420.2,2.7112]
[1750760426164,2.1342,2420.9,2420.4,3.2078]
[1750760427669,0.7051,2420.9,2420.4,3.2078]
[1750760429067,3.2078,2421.0,2420.4,3.2078]
[1750760429266,2.7828991,2422.1,2420.9,3.2078]
[1750760429569,3.2078,2422.6,2421.9,3.2078]
[1750760429769,3.2078,2422.2,2421.6,3.2078]
[1750760430271,2.1269,2422.1,2421.6,3.2078]
[1750760430767,3.2078,2421.9,2421.3,3.2078]
[1750760431069,1.4275,2421.8,2421.3,3.2078]
[1750760431766,3.2078,2421.9,2421.3,3.2078]
[1750760431962,3.2078,2421.9,2421.4,1.3602]
[1750760432361,3.2078,2422.5,2421.8,3.2078]
[1750760432572,1.07340984,2422.4,2421.8,3.2078]
[1750760432773,3.2078,2422.5,2421.9,2.0653]
[1750760432970,1.07271545,2422.4,2421.9,2.0653]
[1750760433173,3.2078,2422.8,2422.3,3.2078]
[1750760433367,4.28053829,2422.7,2422.1,3.2078]
[1750760433567,4.5771,2422.7,2422.0,0.7202]
[1750760433767,3.2078,2422.3,2422.0,0.7202]
[1750760433967,3.2078,2422.3,2421.9,0.6689]
[1750760434266,3.2078,2422.3,2421.7,3.2078]
[1750760434467,1.3693,2422.2,2421.7,3.2078]
[1750760435873,0.6887,2422.1,2421.7,3.2078]
[1750760436066,0.6887,2422.1,2421.4,3.2078]
[1750760436067,1.43,2422.0,2421.4,3.2078]
[1750760436271,1.76588927,2421.9,2421.1,4.6042]
[1750760436476,0.6953,2421.9,2421.1,4.6042]
[1750760436677,0.6953,2421.9,2421.4,3.2715515]
[1750760437379,3.2078,2422.0,2421.5,1.4156]
[1750760437678,3.2078,2422.0,2421.5,2.1013]
[1750760440280,3.2078,2422.3,2421.7,3.2078]
[1750760440477,1.07086446,2422.2,2421.7,3.2078]
[1750760440677,1.07086446,2422.1,2421.7,3.2078]
[1750760440878,4.535,2422.3,2421.7,3.2078]
[1750760441078,3.2078,2422.9,2422.0,3.2078]
[1750760441273,2.51831145,2422.8,2422.1,2.0217]
[1750760441473,3.2078,2422.6,2422.1,0.6524]
[1750760441679,2.1309,2422.5,2422.0,3.2078]
[1750760442976,2.1309,2422.5,2422.1,0.6524]
[1750760443681,0.6844,2422.5,2422.1,0.6524]
[1750760444284,0.6844,2422.5,2422.1,2.0185]
[1750760444883,3.2078,2422.6,2422.1,2.0185]